[Event "33rd Croatian Junior League 2024"]
[Site "Novalja"]
[Date "2024.04.04"]
[Round "5.10"]
[White "Perusko, Niko"]
[Black "Dumancic, Simun"]
[Result "1/2-1/2"]
[ECO "D02"]
[WhiteElo "1958"]
[BlackElo "2027"]
[Annotator "RC"]
[PlyCount "76"]
[EventDate "2024.03.28"]
[EventType "team-tourn"]
[EventCountry "CRO"]
[SourceTitle "playchess.com"]
[Source "ChessBase"]
[SourceQuality "1"]
[TimeControl "5400+30"]

1. Nf3 {[%emt 0:00:03]} c5 {[%emt 0:00:16]} 2. g3 {[%emt 0:00:07]} d5 {[%emt 0:00:19]} 3. Bg2 {[%emt 0:00:10]} Nc6 {[%emt 0:00:07]} 4. d4 {[%emt 0:00:35]} cxd4 {[%emt 0:01:36]} 5. Nxd4 {[%emt 0:01:27]} e5 {[%emt 0:01:32]} 6. Nxc6 {[%emt 0:00:17]} bxc6 {[%emt 0:00:03]} 7. O-O {[%emt 0:02:22]} Bc5 {[%emt 0:01:11]} 8. c4 {[%emt 1:29:29]} Ne7 {[%emt 0:00:29]} 9. cxd5 {[%emt 0:00:00]} cxd5 {[%emt 0:00:08]} 10. Nc3 {[%emt 0:00:00]} Be6 {[%emt 0:00:08]} 11. Qa4+ {[%emt 0:00:00]} Qd7 {[%emt 0:02:40]} 12. Qxd7+ {[%emt 0:00:00]} Kxd7 {[%emt 0:00:05]} 13. Rd1 {[%emt 0:00:00]} Kc6 {[%emt 0:00:49]} 14. Na4 {[%emt 0:00:00]} Bb6 {[%emt 0:02:33]} 15. Bd2 {[%emt 0:00:00]} e4 {[%emt 0:10:35]} 16. Bc3 {[%emt 0:00:00]} Nf5 {[%emt 0:06:12]} 17. Rac1 {[%emt 0:00:00]} Kb7 {[%emt 0:02:04]} 18. Nxb6 {[%emt 0:00:00]} axb6 {[%emt 0:01:12]} 19. a3 {[%emt 0:00:00]} Rhd8 {[%emt 0:04:08]} 20. e3 {[%emt 0:00:00]} Rac8 {[%emt 0:05:00]} 21. Bh3 {[%emt 0:00:00]} g6 {[%emt 0:03:42]} 22. Bxf5 {[%emt 0:00:00]} Bxf5 {[%emt 0:00:22]} 23. Bd2 {[%emt 0:00:00]} d4 {[%emt 0:01:50]} 24. exd4 {[%emt 0:00:00]} Rxd4 {[%emt 0:01:16]} 25. Be3 {[%emt 0:00:00]} Rxd1+ {[%emt 0:02:26]} 26. Rxd1 {[%emt 0:00:00]} Rc2 {[%emt 0:00:11]} 27. Rd2 {[%emt 0:00:00]} Rc1+ {[%emt 0:03:54]} 28. Kg2 {[%emt 0:00:00]} Rb1 {[%emt 0:00:14]} 29. h3 {[%emt 0:00:00]} Be6 {[%emt 0:01:17]} 30. g4 {[%emt 0:00:00]} Bc4 {[%emt 0:07:47]} 31. g5 {[%emt 0:00:00]} Bd3 {[%emt 0:02:40]} 32. Kg3 {[%emt 0:00:00]} Kc6 {[%emt 0:03:34]} 33. Kf4 {[%emt 0:01:15]} Rh1 {[%emt 0:02:13]} 34. Ke5 {[%emt 0:00:56]} Rxh3 {[%emt 0:05:33]} 35. Kf6 {[%emt 0:01:00]} b5 {[%emt 0:02:37]} 36. Kxf7 {[%emt 0:00:34]} Kd5 {[%emt 0:02:40]} 37. b3 {[%emt 0:01:46]} Ke5 {[%emt 0:02:39]} 38. Kg7 {[%emt 0:00:19]} Rh1 {[%emt 0:23:28]} 1/2-1/2

[Event "33rd Croatian Junior League 2024"]
[Site "Novalja"]
[Date "2024.04.04"]
[Round "5.11"]
[White "Sagovac, Kristijan"]
[Black "Pahljina, Ivo"]
[Result "0-1"]
[ECO "B07"]
[WhiteElo "2030"]
[BlackElo "1871"]
[Annotator "RC"]
[PlyCount "134"]
[EventDate "2024.03.28"]
[EventType "team-tourn"]
[EventCountry "CRO"]
[SourceTitle "playchess.com"]
[Source "ChessBase"]
[SourceQuality "1"]
[TimeControl "5400+30"]

1. e4 {[%emt 0:00:05]} d6 {[%emt 0:00:03]} 2. d4 {[%emt 0:00:12]} Nf6 {[%emt 0:00:05]} 3. Nc3 {[%emt 0:00:06]} Nbd7 {[%emt 0:00:04]} 4. f4 {[%emt 0:01:20]} e5 {[%emt 0:00:05]} 5. Nf3 {[%emt 0:01:07]} exd4 {[%emt 0:00:20]} 6. Qxd4 {[%emt 0:01:30]} c6 {[%emt 0:00:14]} 7. Bc4 {[%emt 0:04:39]} d5 {[%emt 0:00:07]} 8. exd5 {[%emt 0:02:27]} Bc5 {[%emt 0:00:33]} 9. Qd3 {[%emt 0:04:18]} Qe7+ {[%emt 0:04:52]} 10. Qe2 {[%emt 0:07:31]} Nb6 {[%emt 0:06:53]} 11. d6 {[%emt 0:04:35]} Qxe2+ {[%emt 0:13:05]} 12. Bxe2 {[%emt 0:00:06]} Bf5 {[%emt 0:01:42]} 13. Bd3 {[%emt 0:01:06]} Bxd3 {[%emt 0:04:20]} 14. cxd3 {[%emt 0:00:10]} O-O-O {[%emt 0:03:25]} 15. d4 {[%emt 0:01:38]} Rhe8+ {[%emt 0:07:50]} 16. Kf2 {[%emt 0:00:36]} Bxd6 {[%emt 0:02:10]} 17. Ne5 {[%emt 0:04:15]} Re7 {[%emt 0:01:55]} 18. Rf1 {[%emt 0:03:06]} Nfd5 {[%emt 0:03:56]} 19. g3 {[%emt 0:05:48]} f6 {[%emt 0:02:06]} 20. Nd3 {[%emt 0:04:09]} Rde8 {[%emt 0:01:52]} 21. Re1 {[%emt 0:00:44]} Rxe1 {[%emt 0:05:39]} 22. Nxe1 {[%emt 0:00:03]} Bb4 {[%emt 0:00:20]} 23. Ne2 {[%emt 0:02:32]} Bxe1+ {[%emt 0:11:52]} 24. Kxe1 {[%emt 0:00:03]} Nc4 {[%emt 0:00:22]} 25. Kf2 {[%emt 0:08:30]} Nb4 {[%emt 0:05:43]} 26. b3 {[%emt 0:03:00]} Nd6 {[%emt 0:01:45]} 27. a3 {[%emt 0:05:24]} Ne4+ {[%emt 0:02:58]} 28. Kf1 {[%emt 0:02:10]} Nd3 {[%emt 0:02:39]} 29. Ra2 {[%emt 0:05:09]} Nc3 {[%emt 0:04:39]} 30. Nxc3 {[%emt 0:02:11]} Re1+ {[%emt 0:00:14]} 31. Kg2 {[%emt 0:00:06]} Nxc1 {[%emt 0:03:03]} 32. Ra1 {[%emt 0:05:35]} Nd3 {[%emt 0:00:17]} 33. Ra2 {[%emt 0:01:18]} Nc1 {[%emt 0:01:16]} 34. Ra1 {[%emt 0:00:08]} Nd3 {[%emt 0:00:01]} 35. Ra2 {[%emt 0:00:05]} Re3 {[%emt 0:00:44]} 36. Ne2 {[%emt 0:01:03]} Kd7 {[%emt 0:03:48]} 37. Rd2 {[%emt 0:02:38]} Kd6 {[%emt 0:00:39]} 38. Ra2 {[%emt 0:12:47]} h6 {[%emt 0:01:17]} 39. Rd2 {[%emt 0:05:55]} g5 {[%emt 0:01:05]} 40. fxg5 {[%emt 0:00:18]} hxg5 {[%emt 0:00:53]} 41. h4 {[%emt 0:00:15]} gxh4 {[%emt 0:01:14]} 42. gxh4 {[%emt 0:00:01]} Ke6 {[%emt 0:00:01]} 43. Rxd3 {[%emt 0:00:52]} Rxe2+ {[%emt 0:00:13]} 44. Kf3 {[%emt 0:00:39]} Ra2 {[%emt 0:01:26]} 45. a4 {[%emt 0:00:48]} f5 {[%emt 0:00:19]} 46. Re3+ {[%emt 0:00:57]} Kf6 {[%emt 0:00:01]} 47. Re8 {[%emt 0:01:01]} Rb2 {[%emt 0:01:57]} 48. Rf8+ {[%emt 0:00:59]} Kg6 {[%emt 0:00:40]} 49. Kf4 {[%emt 0:00:25]} Rxb3 {[%emt 0:01:49]} 50. Rxf5 {[%emt 0:00:09]} Rb4 {[%emt 0:00:11]} 51. Ke5 {[%emt 0:00:59]} Rxa4 {[%emt 0:01:03]} 52. Rf6+ {[%emt 0:00:13]} Kg7 {[%emt 0:00:18]} 53. h5 {[%emt 0:00:19]} Ra5+ {[%emt 0:00:02]} 54. Ke6 {[%emt 0:00:02]} Rb5 {[%emt 0:01:07]} 55. Rf1 {[%emt 0:01:20]} Kh6 {[%emt 0:00:42]} 56. Rh1 {[%emt 0:00:23]} a5 {[%emt 0:00:00]} 57. Kd6 {[%emt 0:00:24]} Rxh5 {[%emt 0:01:39]} 58. Rb1 {[%emt 0:00:04]} Rb5 {[%emt 0:00:51]} 59. Rxb5 {[%emt 0:00:41]} cxb5 {[%emt 0:00:01]} 60. Ke7 {[%emt 0:00:46]} b4 {[%emt 0:01:01]} 61. d5 {[%emt 0:00:05]} b3 {[%emt 0:00:03]} 62. d6 {[%emt 0:00:02]} b2 {[%emt 0:00:04]} 63. d7 {[%emt 0:00:01]} b1=Q {[%emt 0:00:05]} 64. d8=Q {[%emt 0:02:42]} Qe4+ {[%emt 0:00:12]} 65. Kf7 {[%emt 0:00:00]} Qf5+ {[%emt 0:00:22]} 66. Ke8 {[%emt 0:00:00]} Qg6+ {[%emt 0:00:08]} 67. Kf8 {[%emt 0:00:00]} Qg7+ {[%emt 0:00:06]} 0-1

[Event "33rd Croatian Junior League 2024"]
[Site "Novalja"]
[Date "2024.04.04"]
[Round "5.12"]
[White "Mucic, Lovro"]
[Black "Martic, Filip"]
[Result "1/2-1/2"]
[ECO "A03"]
[WhiteElo "1884"]
[BlackElo "1897"]
[Annotator "NA RC"]
[PlyCount "115"]
[EventDate "2024.03.28"]
[EventType "team-tourn"]
[EventCountry "CRO"]
[SourceTitle "playchess.com"]
[Source "ChessBase"]
[SourceQuality "1"]
[TimeControl "5400+30"]

1. f4 {[%emt 0:00:02]} d5 {[%emt 0:00:08]} 2. Nf3 {[%emt 0:00:06]} c5 {[%emt 0:00:10]} 3. d3 {[%emt 0:00:06]} Nf6 {[%emt 0:00:04]} 4. g3 {[%emt 0:00:03]} g6 {[%emt 0:00:18]} 5. Bg2 {[%emt 0:00:05]} Bg7 {[%emt 0:00:06]} 6. O-O {[%emt 0:00:04]} O-O {[%emt 0:00:03]} 7. Nc3 {[%emt 0:00:05]} d4 {[%emt 0:07:40]} 8. Ne4 {[%emt 0:02:00]} Qb6 {[%emt 0:03:08]} 9. h3 {[%emt 0:03:07]} (9. Nxf6+ $11 {feels stronger.} Qxf6 10. Ne5) 9... Nc6 {[%emt 0:00:27]} (9... Nxe4 $15 10. dxe4 Nc6) 10. g4 {[%emt 0:02:34]} Nd5 {[%emt 0:03:19]} 11. Rb1 {[%emt 0:02:04]} f5 {[%emt 0:02:14]} 12. gxf5 {[%emt 0:00:55]} gxf5 {[%emt 0:00:13]} 13. Ng3 {[%emt 0:01:18]} Nc3 {[%emt 0:00:22]} 14. bxc3 {[%emt 0:01:53]} Qxb1 {[%emt 0:00:06]} 15. Nh5 {[%emt 0:00:43]} Qxa2 {[%emt 0:01:23]} 16. Nxg7 {[%emt 0:00:52]} Kxg7 {[%emt 0:00:14]} 17. e4 $19 {[%emt 0:03:29]} (17. cxd4 $17 cxd4 18. Qd2) 17... h6 {[%emt 0:10:50]} 18. Nh4 {[%emt 0:01:24]} Qf7 {[%emt 0:01:28]} 19. Ba3 {[%emt 0:01:37]} b6 {[%emt 0:23:11]} 20. exf5 {[%emt 0:14:10]} Bb7 {[%emt 0:00:12]} 21. Qg4+ {[%emt 0:04:53]} Kh7 {[%emt 0:00:12]} 22. Qg6+ {[%emt 0:00:22]} Qxg6 {[%emt 0:00:10]} 23. fxg6+ {[%emt 0:00:02]} Kg7 {[%emt 0:00:18]} 24. cxd4 {[%emt 0:00:47]} cxd4 {[%emt 0:00:15]} 25. Bb2 {[%emt 0:00:51]} Rad8 {[%emt 0:00:23]} 26. Be4 {[%emt 0:00:38]} Na5 {[%emt 0:02:24]} 27. Nf5+ {[%emt 0:00:51]} Kxg6 {[%emt 0:00:44]} 28. Nxe7+ {[%emt 0:00:25]} Kf6 {[%emt 0:00:15]} 29. Bxb7 {[%emt 0:00:53]} Nxb7 {[%emt 0:00:29]} 30. Nc6 {[%emt 0:00:06]} Rg8+ {[%emt 0:00:58]} 31. Kf2 {[%emt 0:00:42]} Rc8 {[%emt 0:00:18]} 32. Nxd4 {[%emt 0:00:15]} Kf7 {[%emt 0:01:04]} 33. Kf3 {[%emt 0:00:37]} Nd6 {[%emt 0:01:29]} 34. c4 {[%emt 0:03:10]} h5 {[%emt 0:01:42]} 35. Ba3 {[%emt 0:00:57]} Rgd8 {[%emt 0:01:10]} 36. Bb2 {[%emt 0:02:54]} b5 {[%emt 0:01:01]} 37. cxb5 {[%emt 0:00:37]} Nxb5 {[%emt 0:00:07]} 38. Nxb5 {[%emt 0:00:25]} Rb8 {[%emt 0:00:01]} 39. Bd4 {[%emt 0:01:44]} Rxb5 {[%emt 0:00:09]} 40. Bxa7 {[%emt 0:00:18]} Rxd3+ {[%emt 0:00:02]} 41. Be3 {[%emt 0:00:31]} Rbb3 {[%emt 0:00:54]} 42. Re1 {[%emt 0:00:16]} Kf6 {[%emt 0:00:28]} 43. Ke4 {[%emt 0:00:44]} h4 {[%emt 0:02:52]} 44. Re2 {[%emt 0:02:19]} Ra3 {[%emt 0:00:15]} 45. Re1 {[%emt 0:00:19]} Rdb3 {[%emt 0:00:19]} 46. Bd4+ {[%emt 0:05:05]} Kf7 {[%emt 0:00:18]} 47. Re3 {[%emt 0:00:15]} Rxe3+ {[%emt 0:01:16]} 48. Bxe3 {[%emt 0:00:04]} Rb3 {[%emt 0:00:12]} 49. f5 {[%emt 0:00:47]} Kf6 {[%emt 0:05:51]} 50. Bd4+ {[%emt 0:00:29]} Kg5 {[%emt 0:01:42]} 51. Be3+ {[%emt 0:00:19]} Kf6 {[%emt 0:00:42]} 52. Bd4+ {[%emt 0:00:06]} Kf7 {[%emt 0:00:01]} 53. Be3 {[%emt 0:00:20]} Ra3 {[%emt 0:00:38]} 54. Kf4 {[%emt 0:00:18]} Rd3 {[%emt 0:00:54]} 55. Bf2 {[%emt 0:00:53]} Rxh3 {[%emt 0:03:03]} 56. Kg4 {[%emt 0:00:07]} Rb3 {[%emt 0:00:32]} 57. Bxh4 {[%emt 0:00:21]} Rb1 {[%emt 0:01:25]} 58. Bd8 {[%emt 0:00:49]} 1/2-1/2

[Event "33rd Croatian Junior League 2024"]
[Site "Novalja"]
[Date "2024.04.05"]
[Round "6.1"]
[White "Gal, Andrej"]
[Black "Troselj, Ivan"]
[Result "1-0"]
[ECO "E04"]
[WhiteElo "2274"]
[BlackElo "2072"]
[Annotator "RC"]
[PlyCount "101"]
[EventDate "2024.03.28"]
[EventType "team-tourn"]
[EventCountry "CRO"]
[SourceTitle "playchess.com"]
[Source "ChessBase"]
[SourceQuality "1"]
[TimeControl "5400+30"]

1. d4 {[%emt 0:00:13]} d5 {[%emt 0:02:56]} 2. c4 {[%emt 0:00:05]} e6 {[%emt 0:00:03]} 3. Nf3 Nf6 {[%emt 1:29:01]} 4. g3 {[%emt 0:00:43]} a6 {[%emt 0:00:00]} 5. Bg2 {[%emt 0:07:08]} dxc4 {[%emt 0:00:00]} 6. O-O {[%emt 0:00:23]} Nc6 {[%emt 0:00:00]} 7. e3 {[%emt 0:00:14]} Nd5 {[%emt 0:00:00]} 8. Qe2 {[%emt 0:08:14]} b5 {[%emt 0:00:00]} 9. b3 {[%emt 0:00:30]} cxb3 {[%emt 0:00:00]} 10. axb3 {[%emt 0:00:01]} Bb4 {[%emt 0:00:00]} 11. Ne1 {[%emt 0:07:40]} Bb7 {[%emt 0:00:00]} 12. Nd3 {[%emt 0:02:25]} Be7 13. Bd2 {[%emt 0:01:09]} O-O {[%emt 0:00:00]} 14. Rc1 {[%emt 0:02:15]} Ra7 {[%emt 0:00:00]} 15. Nc3 {[%emt 0:05:06]} Qa8 {[%emt 0:00:00]} 16. Nxd5 {[%emt 0:02:00]} exd5 {[%emt 0:00:00]} 17. Nc5 {[%emt 0:03:43]} Rd8 {[%emt 0:00:00]} 18. Rc2 {[%emt 0:02:12]} Bc8 {[%emt 0:00:00]} 19. Rac1 {[%emt 0:05:51]} Bf5 {[%emt 0:00:00]} 20. Nd3 {[%emt 0:01:06]} Rd6 {[%emt 0:00:00]} 21. Rc5 {[%emt 0:05:40]} Be4 {[%emt 0:00:00]} 22. f3 {[%emt 0:02:49]} Bg6 {[%emt 0:00:00]} 23. Nf4 {[%emt 0:01:09]} Bf8 {[%emt 0:00:00]} 24. h4 {[%emt 0:07:25]} h6 {[%emt 0:00:00]} 25. Qf2 {[%emt 0:07:22]} Qb7 {[%emt 0:00:00]} 26. Nxg6 {[%emt 0:28:07]} Rxg6 {[%emt 0:00:00]} 27. Rxd5 {[%emt 0:00:00]} Nb4 {[%emt 0:00:00]} 28. Rd7 {[%emt 0:00:00]} Nd3 {[%emt 0:00:00]} 29. Rcxc7 {[%emt 0:00:00]} Qb8 {[%emt 0:00:00]} 30. Rxa7 {[%emt 0:00:00]} Nxf2 {[%emt 0:00:00]} 31. f4 {[%emt 0:00:00]} Nd1 {[%emt 0:00:00]} 32. Ra8 {[%emt 0:00:00]} Qb6 {[%emt 0:00:00]} 33. Rdd8 {[%emt 0:00:00]} Rxg3 {[%emt 0:00:00]} 34. Rxf8+ {[%emt 0:00:00]} Kh7 {[%emt 0:00:00]} 35. h5 {[%emt 0:00:00]} Rxg2+ {[%emt 0:00:00]} 36. Kh1 {[%emt 0:00:00]} Nf2+ {[%emt 0:00:00]} 37. Kxg2 {[%emt 0:00:00]} Qb7+ {[%emt 0:00:00]} 38. Kxf2 {[%emt 0:00:00]} g6 {[%emt 0:00:00]} 39. Rh8+ {[%emt 0:00:00]} Kg7 {[%emt 0:00:00]} 40. d5 {[%emt 0:00:00]} Kf6 {[%emt 0:00:00]} 41. hxg6 {[%emt 0:00:00]} Qxd5 {[%emt 0:00:00]} 42. Bc3+ {[%emt 0:00:00]} Kxg6 {[%emt 0:00:00]} 43. Rxa6+ {[%emt 0:00:00]} Kf5 {[%emt 0:00:00]} 44. Re8 {[%emt 0:00:00]} Qd3 {[%emt 0:01:49]} 45. Rf6+ {[%emt 0:02:59]} Kg4 {[%emt 0:00:08]} 46. Rg8+ {[%emt 0:00:04]} Kh5 {[%emt 0:00:05]} 47. Bd4 {[%emt 0:00:34]} Qd2+ {[%emt 0:02:58]} 48. Kf3 {[%emt 0:00:27]} Qd1+ {[%emt 0:00:21]} 49. Ke4 {[%emt 0:00:26]} Qxb3 {[%emt 0:02:06]} 50. Rf5+ {[%emt 0:00:16]} Kh4 {[%emt 0:00:10]} 51. Bf6+ {[%emt 0:00:06]} 1-0

[Event "33rd Croatian Junior League 2024"]
[Site "Novalja"]
[Date "2024.04.05"]
[Round "6.2"]
[White "Damjanovic, Stjepan"]
[Black "Franc, Borna"]
[Result "0-1"]
[ECO "C45"]
[WhiteElo "2150"]
[BlackElo "2221"]
[Annotator "RC"]
[PlyCount "75"]
[EventDate "2024.03.28"]
[EventType "team-tourn"]
[EventCountry "CRO"]
[SourceTitle "playchess.com"]
[Source "ChessBase"]
[SourceQuality "1"]
[TimeControl "5400+30"]

1. e4 {[%emt 0:02:57]} e5 {[%emt 0:00:05]} 2. Nf3 {[%emt 0:00:18]} Nc6 {[%emt 0:00:04]} 3. d4 {[%emt 0:00:27]} exd4 {[%emt 0:00:07]} 4. Nxd4 {[%emt 0:00:05]} Bc5 {[%emt 0:00:05]} 5. Be3 {[%emt 0:00:07]} Qf6 {[%emt 0:00:06]} 6. c3 {[%emt 0:00:19]} Nge7 {[%emt 0:00:05]} 7. Bc4 {[%emt 0:03:48]} Bb6 {[%emt 0:00:43]} 8. O-O {[%emt 0:05:48]} O-O {[%emt 0:00:14]} 9. f4 {[%emt 0:06:12]} Nxd4 {[%emt 0:05:00]} 10. Bxd4 {[%emt 0:01:22]} Bxd4+ {[%emt 0:00:11]} 11. Qxd4 {[%emt 0:01:35]} Qxd4+ {[%emt 0:00:32]} 12. cxd4 {[%emt 0:00:04]} d5 {[%emt 0:00:10]} 13. exd5 {[%emt 0:01:47]} Nf5 {[%emt 0:00:59]} 14. Na3 {[%emt 0:05:06]} a6 {[%emt 0:03:20]} 15. Rfe1 {[%emt 0:04:53]} Bd7 {[%emt 0:03:55]} 16. Nc2 {[%emt 0:03:27]} Rfe8 {[%emt 0:00:26]} 17. Re5 {[%emt 0:02:59]} Nd6 {[%emt 0:02:12]} 18. Bd3 {[%emt 0:00:41]} f6 {[%emt 0:00:10]} 19. Ree1 {[%emt 0:01:47]} Bb5 {[%emt 0:03:22]} 20. Bxb5 {[%emt 0:13:02]} axb5 {[%emt 0:00:06]} 21. Nb4 {[%emt 0:02:34]} Kf7 {[%emt 0:05:30]} 22. b3 {[%emt 0:12:33]} Nf5 {[%emt 0:02:12]} 23. Kf2 {[%emt 0:06:39]} Nxd4 {[%emt 0:02:13]} 24. Red1 {[%emt 0:05:15]} Re2+ {[%emt 0:01:50]} 25. Kf1 {[%emt 0:00:04]} Re4 {[%emt 0:00:05]} 26. Nd3 {[%emt 0:00:56]} Nc2 {[%emt 0:00:17]} 27. Nf2 {[%emt 0:04:12]} Re7 {[%emt 0:00:39]} 28. a4 {[%emt 0:01:23]} Nxa1 {[%emt 0:00:09]} 29. Rxa1 {[%emt 0:00:03]} Rd7 {[%emt 0:00:13]} 30. Ne4 {[%emt 0:00:59]} Rxd5 {[%emt 0:00:05]} 31. Nc3 {[%emt 0:00:05]} Rc5 {[%emt 0:00:10]} 32. Ne2 {[%emt 0:01:11]} bxa4 {[%emt 0:00:09]} 33. bxa4 {[%emt 0:00:03]} b6 {[%emt 0:00:09]} 34. Rd1 {[%emt 0:00:15]} Rxa4 {[%emt 0:00:09]} 35. Rd7+ {[%emt 0:00:04]} Ke8 {[%emt 0:01:21]} 36. Rxg7 {[%emt 0:00:48]} Rc2 {[%emt 0:00:04]} 37. Rxh7 {[%emt 0:00:13]} Raa2 {[%emt 0:00:04]} 38. Kf2 {[%emt 0:00:02]} 0-1

[Event "33rd Croatian Junior League 2024"]
[Site "Novalja"]
[Date "2024.04.05"]
[Round "6.3"]
[White "Marfat, Ivan"]
[Black "Bozic, Niko"]
[Result "1-0"]
[ECO "B07"]
[WhiteElo "1903"]
[BlackElo "1832"]
[Annotator "RC"]
[PlyCount "53"]
[EventDate "2024.03.28"]
[EventType "team-tourn"]
[EventCountry "CRO"]
[SourceTitle "playchess.com"]
[Source "ChessBase"]
[SourceQuality "1"]
[TimeControl "5400+30"]

1. e4 {[%emt 0:00:03]} c6 {[%emt 0:00:16]} 2. Nc3 {[%emt 0:00:07]} d6 {[%emt 0:00:16]} 3. d4 {[%emt 0:00:06]} Nf6 {[%emt 0:00:07]} 4. f4 {[%emt 0:00:08]} Qa5 {[%emt 0:00:22]} 5. Bd3 {[%emt 0:00:03]} e5 {[%emt 0:00:17]} 6. Nf3 {[%emt 0:00:42]} Bg4 {[%emt 0:01:09]} 7. Be3 {[%emt 0:00:08]} Nbd7 {[%emt 0:05:49]} 8. O-O {[%emt 0:07:01]} Be7 {[%emt 0:08:13]} 9. h3 {[%emt 0:01:29]} Bxf3 {[%emt 0:01:07]} 10. Qxf3 {[%emt 0:00:04]} h6 {[%emt 0:09:27]} 11. fxe5 {[%emt 0:22:51]} dxe5 {[%emt 0:00:43]} 12. d5 {[%emt 0:00:18]} Bc5 {[%emt 0:12:13]} 13. dxc6 {[%emt 0:01:07]} bxc6 {[%emt 0:03:25]} 14. Bxc5 {[%emt 0:03:08]} Nxc5 {[%emt 0:03:01]} 15. Qg3 {[%emt 0:01:37]} Ne6 {[%emt 0:03:36]} 16. Rf5 {[%emt 0:06:06]} Qb6+ {[%emt 0:06:50]} 17. Kh2 {[%emt 0:00:19]} Qxb2 {[%emt 0:00:30]} 18. Qe1 {[%emt 0:00:11]} O-O {[%emt 0:00:49]} 19. Rb1 {[%emt 0:01:42]} Qa3 {[%emt 0:01:04]} 20. Rb3 {[%emt 0:01:06]} Qa5 {[%emt 0:03:07]} 21. Qg3 {[%emt 0:00:15]} Nd7 {[%emt 0:02:37]} 22. Ne2 {[%emt 0:01:55]} Rab8 {[%emt 0:05:55]} 23. Bc4 {[%emt 0:01:38]} Rxb3 {[%emt 0:08:25]} 24. axb3 {[%emt 0:00:41]} Re8 {[%emt 0:10:51]} 25. Nd4 {[%emt 0:01:10]} Qc7 {[%emt 0:06:02]} 26. Nxe6 {[%emt 0:00:54]} fxe6 {[%emt 0:00:02]} 27. Qg6 {[%emt 0:00:07]} 1-0

[Event "33rd Croatian Junior League 2024"]
[Site "Novalja"]
[Date "2024.04.05"]
[Round "6.4"]
[White "Sosic, Zvan"]
[Black "Mesic, Josip"]
[Result "1/2-1/2"]
[ECO "C05"]
[WhiteElo "1868"]
[BlackElo "1745"]
[Annotator "NA RC"]
[PlyCount "64"]
[EventDate "2024.03.28"]
[EventType "team-tourn"]
[EventCountry "CRO"]
[SourceTitle "playchess.com"]
[Source "ChessBase"]
[SourceQuality "1"]
[TimeControl "5400+30"]

1. e4 {[%emt 0:00:02]} e6 {[%emt 0:00:32]} 2. d4 {[%emt 0:00:05]} d5 {[%emt 0:00:12]} 3. Nd2 {[%emt 0:00:17]} Nf6 {[%emt 0:00:19]} 4. exd5 {[%emt 0:02:00]} exd5 {[%emt 0:00:08]} 5. h3 {[%emt 0:00:27]} Bf5 {[%emt 0:00:54]} 6. Ngf3 {[%emt 0:00:11] C05: French Tarrasch: 3...Nf6 4 e5 Nfd7, 5 f4 and 5 Bd3 sidelines.} Bd6 {[%emt 0:00:17]} 7. c4 {[%emt 0:02:02]} c6 {[%emt 0:02:00]} 8. Be2 {[%emt 0:00:23]} O-O {[%emt 0:00:07]} 9. O-O {[%emt 0:00:06]} Nbd7 {[%emt 0:00:24]} 10. Re1 {[%emt 0:00:46]} dxc4 {[%emt 0:03:19]} 11. Nxc4 {[%emt 0:00:25]} Nb6 {[%emt 0:00:40]} 12. Bg5 {[%emt 0:05:27]} Nbd5 {[%emt 0:02:06]} 13. Bd3 {[%emt 0:00:40]} Bxd3 {[%emt 0:02:11]} 14. Qxd3 {[%emt 0:01:10]} Qc7 {[%emt 0:05:09]} 15. Nh4 {[%emt 0:06:46]} Bf4 {[%emt 0:02:32]} 16. Bxf6 {[%emt 0:01:31]} Nxf6 {[%emt 0:00:10]} 17. Nf5 {[%emt 0:00:30]} g6 {[%emt 0:02:28]} 18. Nh4 {[%emt 0:16:59]} Rfe8 {[%emt 0:01:39]} 19. Nf3 {[%emt 0:00:55]} Bh6 {[%emt 0:00:54]} 20. Nfe5 {[%emt 0:01:49]} Rad8 {[%emt 0:00:54]} 21. Rad1 {[%emt 0:01:20]} Nd5 {[%emt 0:00:52]} 22. Qf3 {[%emt 0:00:36]} Bg7 {[%emt 0:02:29]} 23. g3 {[%emt 0:11:12]} b5 {[%emt 0:05:05]} 24. Ne3 {[%emt 0:01:50]} Bxe5 {[%emt 0:00:36]} 25. dxe5 {[%emt 0:00:58]} Rxe5 {[%emt 0:00:28]} 26. Nxd5 {[%emt 0:02:25]} Rdxd5 {[%emt 0:00:43]} 27. Kg2 {[%emt 0:00:22]} Rxd1 {[%emt 0:01:26]} 28. Rxd1 {[%emt 0:00:10]} Rf5 {[%emt 0:01:14]} 29. Qe4 {[%emt 0:01:55]} Qe5 {[%emt 0:02:34]} 30. Qxc6 {[%emt 0:01:28]} Qxb2 {[%emt 0:00:31]} 31. Qa8+ {[%emt 0:00:23]} Kg7 {[%emt 0:00:34]} 32. Qxa7 {[%emt 0:00:04]} h5 $11 {[%emt 1:03:03]} 1/2-1/2

[Event "33rd Croatian Junior League 2024"]
[Site "Novalja"]
[Date "2024.04.05"]
[Round "6.5"]
[White "Zadro, Matej"]
[Black "Novosel, Lovro"]
[Result "1-0"]
[ECO "B14"]
[WhiteElo "1924"]
[BlackElo "2348"]
[Annotator "RC"]
[PlyCount "71"]
[EventDate "2024.03.28"]
[EventType "team-tourn"]
[EventCountry "CRO"]
[SourceTitle "playchess.com"]
[Source "ChessBase"]
[SourceQuality "1"]
[TimeControl "5400+30"]

1. e4 {[%emt 0:02:14]} c6 {[%emt 0:00:15]} 2. d4 {[%emt 0:00:05]} d5 {[%emt 0:00:07]} 3. exd5 {[%emt 0:00:04]} cxd5 {[%emt 0:00:06]} 4. c4 {[%emt 0:00:02]} Nf6 {[%emt 0:00:17]} 5. Nc3 {[%emt 0:00:15]} e6 {[%emt 0:01:14]} 6. Nf3 {[%emt 0:00:06]} Bb4 {[%emt 0:00:12]} 7. Bd3 {[%emt 0:13:24]} h6 {[%emt 0:05:41]} 8. O-O {[%emt 0:02:49]} O-O {[%emt 0:00:27]} 9. Bf4 {[%emt 0:04:48]} dxc4 {[%emt 0:06:16]} 10. Bxc4 {[%emt 0:01:05]} Bxc3 {[%emt 0:06:14]} 11. bxc3 {[%emt 0:00:10]} Nd5 {[%emt 0:00:35]} 12. Qd2 Nc6 {[%emt 0:09:55]} 13. Rfe1 {[%emt 0:11:55]} Nxf4 {[%emt 0:15:04]} 14. Qxf4 {[%emt 0:00:15]} Bd7 {[%emt 0:00:15]} 15. Rad1 {[%emt 0:10:53]} Ne7 {[%emt 0:02:53]} 16. Ne5 {[%emt 0:28:48]} Bc6 {[%emt 0:05:04]} 17. Bd3 {[%emt 0:03:28]} Qa5 {[%emt 0:08:11]} 18. c4 {[%emt 0:03:50]} Qc7 {[%emt 0:19:26]} 19. Re3 {[%emt 0:02:40]} Rae8 {[%emt 0:02:07]} 20. Rg3 {[%emt 0:02:01]} f6 {[%emt 0:00:20]} 21. Rxg7+ {[%emt 0:01:22]} Kxg7 {[%emt 0:00:07]} 22. Qg3+ {[%emt 0:00:03]} Kh8 {[%emt 0:01:24]} 23. Ng6+ {[%emt 0:00:47]} Nxg6 {[%emt 0:00:05]} 24. Qxc7 {[%emt 0:00:02]} f5 {[%emt 0:00:25]} 25. d5 {[%emt 0:02:15]} exd5 {[%emt 0:00:26]} 26. cxd5 {[%emt 0:00:02]} Bxd5 {[%emt 0:00:12]} 27. Qd6 {[%emt 0:00:18]} Be6 {[%emt 0:01:27]} 28. Re1 {[%emt 0:03:26]} Bf7 {[%emt 0:01:00]} 29. Rxe8 {[%emt 0:00:56]} Bxe8 {[%emt 0:01:47]} 30. h4 {[%emt 0:00:48]} h5 {[%emt 0:04:15]} 31. Be2 {[%emt 0:01:11]} Kg7 {[%emt 0:02:10]} 32. Bxh5 {[%emt 0:00:29]} a6 {[%emt 0:00:33]} 33. Bf3 {[%emt 0:00:35]} Rf6 {[%emt 0:00:53]} 34. Qd4 {[%emt 0:00:20]} Bf7 {[%emt 0:00:39]} 35. h5 {[%emt 0:00:50]} Nf8 {[%emt 0:01:27]} 36. h6+ {[%emt 0:00:14]} 1-0